bitfinex/quotes_BTCUSD_20241208
["timestamp","ask_amount","ask_price","bid_price","bid_amount"]
[1733666721860,0.19312233,100310.0,100300.0,0.24476251]
[1733666722270,0.19512233,100310.0,100300.0,0.24576251]
[1733666722641,0.002,100310.0,100300.0,0.42522351]
[1733666722843,0.002,100310.0,100300.0,0.24576251]
[1733666723046,0.181443,100310.0,100300.0,0.42522351]
[1733666723624,0.181443,100310.0,100300.0,0.24576251]
[1733666725951,0.181443,100310.0,100300.0,0.42522351]
[1733666726714,0.002,100310.0,100300.0,0.42522351]
[1733666727107,0.002,100310.0,100300.0,0.122733]
[1733666727263,0.181443,100310.0,100300.0,0.122733]
[1733666727874,0.181443,100310.0,100300.0,0.22276251]
[1733666729944,0.002,100310.0,100300.0,0.40222351]
[1733666731434,0.002,100310.0,100300.0,0.40965306]
[1733666731640,0.0069777,100310.0,100300.0,0.43265306]
[1733666732863,0.1864207,100310.0,100300.0,0.43265306]
[1733666733065,0.1864207,100310.0,100300.0,0.25319206]
[1733666733781,0.1864207,100310.0,100300.0,0.25319567]
[1733666733981,0.1864207,100310.0,100300.0,0.24576251]
[1733666734714,0.1864207,100310.0,100300.0,0.25319565]
[1733666734914,0.1864207,100310.0,100300.0,0.15979565]
[1733666735115,0.1864207,100310.0,100300.0,0.15236251]
[1733666735357,0.1864207,100310.0,100300.0,0.15979652]
[1733666739037,0.1881539,100310.0,100300.0,0.15979652]
[1733666739275,0.1881539,100310.0,100300.0,0.16079342]
[1733666739877,0.1881539,100310.0,100300.0,0.15979652]
[1733666741659,0.1881539,100310.0,100300.0,0.16079342]
[1733666743049,0.0087109,100310.0,100300.0,0.36325442]
[1733666743257,0.0087109,100310.0,100300.0,0.36225752]
[1733666744695,0.0087109,100310.0,100300.0,0.45143978]
[1733666744894,0.0084562,100310.0,100300.0,0.45143978]
[1733666745573,0.0084562,100310.0,100300.0,0.45144952]
[1733666748486,0.0084562,100310.0,100300.0,0.46159693]
[1733666748948,0.553297,100320.0,100300.0,0.46159693]
[1733666749187,0.00456957,100310.0,100300.0,0.46159693]
[1733666751092,0.00456957,100310.0,100300.0,0.46059693]
[1733666751321,0.00456957,100310.0,100300.0,0.37141467]
[1733666751526,0.00630277,100310.0,100300.0,0.46069331]
[1733666751728,0.00630277,100310.0,100300.0,0.92419299]
[1733666751932,0.48275704,100330.0,100310.0,0.202438]
[1733666752136,0.48275704,100330.0,100310.0,0.3991899]
[1733666752388,0.66217504,100330.0,100310.0,0.30991126]
[1733666752606,0.66217504,100330.0,100310.0,0.3991899]
[1733666752809,0.66217504,100330.0,100310.0,0.30991126]
[1733666753216,0.48275704,100330.0,100310.0,0.48935426]
[1733666753427,0.49175704,100330.0,100310.0,0.5786329]
[1733666754279,0.67417504,100330.0,100310.0,0.5786329]
[1733666754486,0.49475704,100330.0,100310.0,0.5786329]
[1733666754751,0.67417504,100330.0,100310.0,0.71255087]
[1733666755188,0.179425,100320.0,100310.0,0.35366987]
[1733666755423,0.179425,100320.0,100310.0,0.2197519]
[1733666755920,0.179425,100320.0,100310.0,0.13047326]
[1733666756525,0.185425,100320.0,100310.0,0.13047326]
[1733666756731,0.18971827,100320.0,100310.0,0.13047326]
[1733666757169,0.17471827,100320.0,100310.0,0.13047326]
[1733666757750,0.17471827,100320.0,100310.0,0.00744375]
[1733666757953,0.35615327,100320.0,100310.0,0.00744834]
[1733666758386,0.35615327,100320.0,100310.0,0.00744856]
[1733666759744,0.17671827,100320.0,100310.0,0.00744856]
[1733666762788,0.17671827,100320.0,100310.0,0.00745118]
[1733666762990,0.17845147,100320.0,100310.0,0.00745118]
[1733666764810,0.17845147,100320.0,100310.0,0.00745175]
[1733666764974,0.17845147,100320.0,100310.0,0.09678859]
[1733666765771,0.26145147,100320.0,100310.0,0.09678859]
[1733666766217,0.26145147,100320.0,100310.0,0.08933684]
[1733666766461,0.26145147,100320.0,100310.0,0.09678899]
[1733666766672,0.26145147,100320.0,100310.0,0.00745215]
[1733666767490,0.27645147,100320.0,100310.0,0.00745215]
[1733666768540,0.32455147,100320.0,100310.0,0.00745215]
[1733666768752,0.30955147,100320.0,100310.0,0.00745215]
[1733666769638,0.32455147,100320.0,100310.0,0.00745215]
[1733666769845,0.39919854,100320.0,100310.0,0.00745215]
[1733666770071,0.098,100310.0,100300.0,0.09864703]
[1733666770550,0.10221772,100310.0,100300.0,0.09864703]
[1733666771598,0.28366072,100310.0,100300.0,0.09864703]
[1733666771808,0.28366072,100310.0,100300.0,0.09964703]
[1733666773060,0.28366072,100310.0,100300.0,0.09965071]
[1733666773473,0.28366072,100310.0,100300.0,0.01018883]
[1733666778219,0.28366072,100310.0,100300.0,0.002733]
[1733666778220,0.51869023,100310.0,100300.0,0.002733]
[1733666778423,0.56549023,100310.0,100300.0,0.002733]
[1733666778644,0.65512475,100310.0,100300.0,0.002733]
[1733666779453,0.6550943,100310.0,100300.0,0.002733]
[1733666780171,0.56549023,100310.0,100300.0,0.002733]
[1733666782407,0.57560263,100310.0,100300.0,0.002733]
[1733666782607,0.62560263,100310.0,100300.0,0.002733]
[1733666782857,0.76000873,100310.0,100300.0,0.002733]
[1733666783309,0.76000873,100310.0,100300.0,0.001733]
[1733666783310,0.84958066,100310.0,100300.0,0.001733]
[1733666783518,0.84758066,100310.0,100300.0,0.001733]
[1733666783726,1.02817134,100310.0,100300.0,0.001733]
[1733666783940,1.03117134,100310.0,100300.0,0.001733]
[1733666784373,0.8519632,100310.0,100300.0,0.001733]
[1733666784581,1.04017134,100310.0,100300.0,0.001733]
[1733666784790,1.06025995,100310.0,100300.0,0.001733]
[1733666785059,1.16007529,100310.0,100300.0,0.001733]
[1733666785682,0.98086715,100310.0,100300.0,0.001733]
[1733666786068,1.16007529,100310.0,100300.0,0.001733]
[1733666786266,0.98086715,100310.0,100300.0,0.001733]
[1733666786474,0.88105181,100310.0,100300.0,0.001733]
[1733666788704,0.74664571,100310.0,100300.0,0.001733]
[1733666789096,0.79126556,100310.0,100300.0,0.001733]
[1733666789378,0.65707378,100310.0,100300.0,0.001733]
[1733666790360,0.74651243,100310.0,100300.0,0.001733]
[1733666790564,0.84632777,100310.0,100300.0,0.001733]
[1733666792253,0.74651243,100310.0,100300.0,0.001733]
[1733666793932,0.74648135,100310.0,100300.0,0.001733]
[1733666795390,0.65707378,100310.0,100300.0,0.001733]
[1733666798455,0.60707378,100310.0,100300.0,0.001733]
[1733666803401,0.29015566,100310.0,100300.0,0.001733]
[1733666803760,0.21204326,100310.0,100300.0,0.001733]
[1733666803960,0.03260026,100310.0,100300.0,0.001733]
[1733666804170,0.21204326,100310.0,100300.0,0.001733]
[1733666804824,0.01760026,100310.0,100300.0,0.30422351]
[1733666805057,0.01760026,100310.0,100300.0,0.39682351]
[1733666805295,0.00860026,100310.0,100300.0,0.39682351]
[1733666805529,0.01460026,100310.0,100300.0,0.39682351]
[1733666805740,0.00860026,100310.0,100300.0,0.39682351]
[1733666806151,0.01460026,100310.0,100300.0,0.39682351]
[1733666806566,0.01160026,100310.0,100300.0,0.39682351]
[1733666806917,0.01360026,100310.0,100300.0,0.39682351]
[1733666807155,0.00760026,100310.0,100300.0,0.39682351]
[1733666807454,0.00560026,100310.0,100300.0,0.39682351]
[1733666808394,0.00760026,100310.0,100300.0,0.39782351]
[1733666816389,0.00760026,100310.0,100300.0,0.32742351]
[1733666818703,0.00760026,100310.0,100300.0,0.10276251]
[1733666818912,0.18704326,100310.0,100300.0,0.10276251]
[1733666821283,0.28314326,100310.0,100300.0,0.002733]
[1733666825806,0.29337505,100310.0,100300.0,0.002733]
[1733666827532,0.6282199,100310.0,100300.0,0.002733]
[1733666827736,0.6737199,100310.0,100300.0,0.002733]
[1733666828581,0.57390456,100310.0,100300.0,0.002733]
[1733666829232,0.62390456,100310.0,100300.0,0.002733]
[1733666829876,0.62190456,100310.0,100300.0,0.002733]
[1733666830312,0.72030855,100310.0,100300.0,0.001733]
[1733666830527,0.63390456,100310.0,100300.0,0.001733]
[1733666830766,0.6880074,100310.0,100300.0,0.001733]
[1733666831197,0.7380074,100310.0,100300.0,0.001733]
[1733666831418,0.82741139,100310.0,100300.0,0.001733]
[1733666831628,0.96151738,100310.0,100300.0,0.001733]
[1733666833910,1.14034243,100310.0,100300.0,0.001733]
[1733666834346,1.09034243,100310.0,100300.0,1e-06]
[1733666834781,1.31385242,100310.0,100300.0,1e-06]
[1733666835447,1.19744843,100310.0,100300.0,1e-06]
[1733666835651,0.05,100290.0,100280.0,0.0017316]
[1733666835875,0.60850851,100290.0,100280.0,0.0017316]
[1733666836084,0.63837115,100290.0,100280.0,0.0017316]
[1733666836900,0.63837115,100290.0,100280.0,0.00230699]
[1733666837522,0.64737115,100290.0,100280.0,0.00230699]
[1733666838141,0.69737115,100290.0,100280.0,0.00230699]
[1733666838566,0.78977583,100290.0,100280.0,0.00230699]
[1733666839408,0.66477583,100290.0,100280.0,0.00230699]
[1733666839613,0.42824164,100290.0,100280.0,0.00230699]
[1733666840027,0.41924164,100290.0,100280.0,0.00230699]
[1733666840441,0.44540768,100290.0,100280.0,0.00230699]
[1733666840653,0.43640768,100290.0,100280.0,0.00230699]
[1733666840850,0.48874608,100290.0,100280.0,0.00330699]
[1733666841052,0.45040768,100290.0,100280.0,0.00330699]
[1733666841259,0.43640768,100290.0,100280.0,0.00230699]
[1733666841468,0.44630284,100290.0,100280.0,0.00230699]
[1733666841675,0.45130284,100290.0,100280.0,0.00230699]
[1733666841877,0.45230284,100290.0,100280.0,0.00230699]
[1733666842305,0.52331291,100290.0,100280.0,0.00230699]
[1733666842517,0.67144242,100290.0,100280.0,0.00230699]
[1733666843798,0.72144242,100290.0,100280.0,0.00230699]
[1733666844028,0.67144242,100290.0,100280.0,0.00230699]
[1733666844448,0.67144242,100290.0,100270.0,0.0020326]
[1733666844449,0.454997,100280.0,100270.0,0.0020326]
[1733666844669,0.60502651,100280.0,100270.0,0.0020326]
[1733666844876,0.60922355,100280.0,100270.0,0.0020326]
[1733666846665,0.61822355,100280.0,100270.0,0.0020326]
[1733666846869,0.62322355,100280.0,100270.0,0.0020326]
[1733666847075,0.61422355,100280.0,100270.0,0.0020326]
[1733666847285,0.62322355,100280.0,100270.0,0.0020326]
[1733666847495,0.61822355,100280.0,100270.0,0.0020326]
[1733666847700,0.62122355,100280.0,100270.0,0.0020326]
[1733666848353,0.72103889,100280.0,100270.0,0.0020326]
[1733666848564,0.37122355,100280.0,100270.0,0.0020326]
[1733666849862,0.52122355,100280.0,100270.0,0.0020326]
[1733666850582,0.15,100240.0,100220.0,0.0008662]
[1733666850796,0.329586,100230.0,100220.0,0.0008662]
[1733666851001,0.33402206,100230.0,100220.0,0.00098093]
[1733666851211,0.43405157,100230.0,100220.0,0.00098093]
[1733666852263,0.33402206,100230.0,100220.0,0.00098093]
[1733666852475,0.34902206,100230.0,100220.0,0.00098093]
[1733666853560,0.35402206,100230.0,100220.0,0.00098093]
[1733666854867,0.35502206,100230.0,100220.0,0.00098093]
[1733666855287,0.01043606,100230.0,100220.0,0.00098093]
[1733666855459,0.01043606,100230.0,100220.0,0.30361444]
[1733666855827,0.01043606,100230.0,100220.0,0.42211444]
[1733666856016,0.0017326,100240.0,100230.0,0.202586]
[1733666856221,0.0017326,100240.0,100230.0,0.30261551]
[1733666857135,0.015,100230.0,100220.0,0.00198093]
[1733666857337,0.194586,100230.0,100220.0,0.00098093]
[1733666857758,0.179586,100230.0,100220.0,0.00098093]
[1733666857961,0.329586,100230.0,100220.0,0.00098093]
[1733666859072,0.42961551,100230.0,100220.0,0.00098093]
[1733666859580,0.43261551,100230.0,100220.0,0.00098093]
[1733666859723,0.43761551,100230.0,100220.0,0.00098093]
[1733666860120,0.43461551,100230.0,100220.0,0.00098093]
[1733666860539,0.43061551,100230.0,100220.0,0.00098093]
[1733666861053,0.43561551,100230.0,100220.0,0.00098093]
[1733666863557,0.34505503,100230.0,100220.0,0.00098093]
[1733666864734,0.34031769,100230.0,100220.0,0.00098093]
[1733666869451,0.19031769,100230.0,100220.0,0.00098093]
[1733666869629,0.01073169,100230.0,100220.0,0.18058493]
[1733666869815,0.19031769,100230.0,100220.0,0.18058493]
[1733666870064,0.01073169,100230.0,100220.0,0.28061444]
[1733666870937,0.5554686,100240.0,100220.0,0.28061444]
[1733666871489,0.00869121,100230.0,100220.0,0.28061444]
[1733666873771,0.01369121,100230.0,100220.0,0.28061444]
[1733666874021,0.01469121,100230.0,100220.0,0.28061444]
[1733666874352,0.00969121,100230.0,100220.0,0.28061444]
[1733666874481,0.00869121,100230.0,100220.0,0.28061444]
[1733666875510,0.00869121,100230.0,100220.0,0.10101044]
[1733666875712,0.18827721,100230.0,100220.0,0.10500811]
[1733666875937,0.00869121,100230.0,100220.0,0.28361444]
[1733666876121,0.00869121,100230.0,100220.0,0.28761444]
[1733666878217,0.01042401,100230.0,100220.0,0.28761444]
[1733666878801,0.01042401,100230.0,100220.0,0.31061444]
[1733666879221,0.0017326,100240.0,100220.0,0.66981344]
[1733666879494,0.00728681,100230.0,100220.0,0.39017993]
[1733666879501,0.00728681,100230.0,100220.0,0.49020944]
[1733666880112,0.00728681,100230.0,100220.0,0.48720944]
[1733666880331,0.00728681,100230.0,100220.0,0.83970944]
[1733666880543,0.00728681,100230.0,100220.0,0.84170944]
[1733666881271,0.00728681,100230.0,100220.0,0.93083114]
[1733666881437,0.00728681,100230.0,100220.0,0.93082977]
[1733666881587,0.0017326,100240.0,100220.0,0.93082977]
[1733666881959,0.0017326,100240.0,100230.0,0.28061298]
[1733666882110,0.0017326,100240.0,100230.0,0.27961551]
[1733666883205,0.0017326,100240.0,100230.0,0.28161551]
[1733666884040,0.0017326,100240.0,100230.0,0.35461551]
[1733666884631,0.0017326,100240.0,100230.0,0.53961551]
[1733666885232,0.0017326,100240.0,100230.0,0.66111551]
[1733666885545,0.0017326,100240.0,100230.0,1.38720786]
[1733666885746,0.0027326,100240.0,100230.0,1.39320786]
[1733666885946,0.0027326,100240.0,100230.0,1.40316475]
[1733666886157,0.408205,100280.0,100260.0,0.35904]
[1733666886371,0.408205,100280.0,100260.0,0.45906951]
[1733666886579,0.408205,100280.0,100260.0,0.63859251]
[1733666886778,0.00738943,100270.0,100260.0,0.45906951]
[1733666887421,0.02238943,100270.0,100260.0,0.27966124]
[1733666887656,0.20190443,100270.0,100260.0,0.00011473]
[1733666888317,0.194515,100270.0,100260.0,0.00011473]
[1733666888585,0.20192546,100270.0,100260.0,0.00011473]
[1733666889329,0.20192546,100270.0,100260.0,0.00311473]
[1733666889761,0.20192546,100270.0,100260.0,0.00011473]
[1733666890361,0.20365826,100270.0,100260.0,0.00011473]
[1733666890815,0.20365826,100270.0,100260.0,0.00211473]
[1733666892481,0.20365826,100270.0,100260.0,0.18164773]
[1733666893446,0.20365826,100270.0,100260.0,0.00211473]
[1733666893773,0.20365826,100270.0,100260.0,0.18164773]
[1733666895535,0.02414326,100270.0,100260.0,0.18164773]
[1733666895931,0.00914326,100270.0,100260.0,0.18164773]
[1733666897548,0.00914326,100270.0,100260.0,0.28267455]
[1733666897714,0.00914326,100270.0,100260.0,0.28167724]
[1733666899707,0.00914326,100270.0,100260.0,0.29187163]
[1733666901290,0.233,100290.0,100280.0,0.179497]
[1733666901502,0.083,100290.0,100280.0,0.179497]
[1733666902289,0.083,100290.0,100280.0,0.28052362]
[1733666902492,0.083,100290.0,100280.0,0.27952651]
[1733666902712,0.086,100290.0,100280.0,0.27772651]
[1733666902915,0.101,100290.0,100280.0,0.27772651]
[1733666903083,0.109,100290.0,100280.0,0.27872651]
[1733666903291,0.094,100290.0,100280.0,0.27872651]
[1733666903491,0.083,100290.0,100280.0,0.27772651]
[1733666904002,0.001,100290.0,100280.0,0.27772651]
[1733666905200,0.083,100300.0,100280.0,0.27772651]
[1733666905392,0.083,100300.0,100290.0,0.28050551]
[1733666905568,0.083,100300.0,100290.0,0.27950851]
[1733666906141,0.098,100300.0,100290.0,0.27950851]
[1733666906349,0.102,100300.0,100290.0,0.27950851]
[1733666906527,0.103,100300.0,100290.0,0.27950851]
[1733666907004,0.106,100300.0,100290.0,0.27950851]
[1733666907573,0.098,100290.0,100270.0,0.359012]
[1733666907815,0.277492,100290.0,100270.0,0.45904051]
[1733666907997,0.456984,100290.0,100270.0,0.45904051]
[1733666908213,0.456982,100290.0,100270.0,0.45904051]
[1733666908432,0.45698,100290.0,100270.0,0.45904051]
[1733666908720,0.63647,100290.0,100270.0,0.45904051]
[1733666908930,0.00499898,100280.0,100270.0,0.27953451]
[1733666909297,0.18449598,100280.0,100270.0,0.28053451]
[1733666909523,0.00499898,100280.0,100270.0,0.28053451]
[1733666909913,0.00499898,100280.0,100270.0,0.28353451]
[1733666910318,0.18449598,100280.0,100270.0,0.28653451]
[1733666911399,0.00499898,100280.0,100270.0,0.28653451]
[1733666912932,0.00499898,100280.0,100270.0,0.43193451]
[1733666913057,0.083,100300.0,100290.0,0.179479]
[1733666913261,0.083,100300.0,100290.0,0.28050553]
[1733666913460,0.083,100300.0,100290.0,0.27950851]
[1733666914339,0.0847316,100310.0,100300.0,0.179461]
[1733666914546,0.0847316,100310.0,100300.0,0.2804874]
[1733666914866,0.0847316,100310.0,100300.0,0.27949051]
[1733666915421,0.08530451,100310.0,100300.0,0.27949051]
[1733666915825,0.08630451,100310.0,100300.0,0.27949051]
[1733666916487,0.08530451,100310.0,100300.0,0.27949051]
[1733666917924,0.08530451,100310.0,100300.0,0.28049051]
[1733666918755,0.08530451,100310.0,100300.0,0.001]
[1733666918956,0.10030451,100310.0,100300.0,0.180461]
[1733666919596,0.10030451,100310.0,100300.0,0.18788503]
[1733666919807,0.10030451,100310.0,100300.0,0.180461]
[1733666921672,0.10030451,100310.0,100300.0,0.18788515]
[1733666922346,0.08530451,100310.0,100300.0,0.18788515]
[1733666922581,0.10030451,100310.0,100300.0,0.18788515]
[1733666922766,0.10030451,100310.0,100300.0,0.28891141]
[1733666922901,0.10030451,100310.0,100300.0,0.2879145]
[1733666923268,0.08530451,100310.0,100300.0,0.2879145]
[1733666923516,0.10030451,100310.0,100300.0,0.2879145]
[1733666928083,0.08530451,100310.0,100300.0,0.2879145]
[1733666928292,0.10030451,100310.0,100300.0,0.2879145]
[1733666930877,0.10030451,100310.0,100300.0,0.29798154]
[1733666932276,0.10030451,100310.0,100300.0,0.2879145]
[1733666933324,0.10030451,100310.0,100300.0,0.287923]
[1733666935412,0.10030451,100310.0,100300.0,0.28792443]
[1733666936717,0.10030451,100310.0,100300.0,0.28792476]
[1733666940952,0.01730451,100310.0,100300.0,0.28792476]
[1733666941650,0.00230451,100310.0,100300.0,0.28792476]
[1733666941848,0.01730451,100310.0,100300.0,0.28792476]
[1733666943082,0.00230451,100310.0,100300.0,0.28792476]
[1733666943275,0.01730451,100310.0,100300.0,0.28792476]
[1733666947824,0.00230451,100310.0,100300.0,0.28792476]
[1733666948042,0.01730451,100310.0,100300.0,0.28792476]
[1733666949676,0.00230451,100310.0,100300.0,0.28792476]
[1733666949934,0.01730451,100310.0,100300.0,0.28792476]
[1733666951056,0.01730451,100310.0,100300.0,0.28049051]
[1733666951380,0.00230451,100310.0,100300.0,0.47299051]
[1733666951579,0.0825332,100320.0,100300.0,0.83190351]
[1733666951800,0.082705,100320.0,100310.0,0.28046927]
[1733666951982,0.082705,100320.0,100310.0,0.27947251]
[1733666953063,0.087705,100320.0,100310.0,0.27947251]
[1733666953566,0.088705,100320.0,100310.0,0.27947251]
[1733666954139,0.087705,100320.0,100310.0,0.27947251]
[1733666954539,0.088705,100320.0,100310.0,0.27947251]
[1733666956457,0.088705,100320.0,100310.0,0.10002951]
[1733666956701,0.088705,100320.0,100300.0,0.358904]
[1733666956702,0.0765,100310.0,100300.0,0.358904]
[1733666956906,0.0765,100310.0,100300.0,0.45893351]
[1733666958019,0.0765,100310.0,100300.0,0.45993351]
[1733666958431,0.0765,100310.0,100300.0,0.5492213]
[1733666959294,0.0765,100310.0,100300.0,0.68315299]
[1733666960442,0.0765,100310.0,100300.0,0.5493842]
[1733666960850,0.0765,100310.0,100300.0,0.5511148]
[1733666961061,0.0773653,100310.0,100300.0,0.5511148]
[1733666961888,0.0773653,100310.0,100300.0,0.88130455]
[1733666962321,0.0773653,100310.0,100300.0,0.685277]
[1733666963813,0.0773653,100310.0,100300.0,1.01533244]
[1733666964435,0.0773653,100310.0,100300.0,1.19415264]
[1733666965310,0.0773653,100310.0,100300.0,1.19410467]
[1733666965921,0.1241653,100310.0,100300.0,1.19410467]
[1733666966114,0.1241653,100310.0,100300.0,1.01465267]
[1733666966339,0.3186083,100310.0,100300.0,0.65636921]
[1733666966538,0.1391653,100310.0,100300.0,0.10276011]
[1733666966749,0.1391653,100310.0,100300.0,0.28222111]
[1733666969450,0.1241653,100310.0,100300.0,0.28222111]
[1733666969626,0.1391653,100310.0,100300.0,0.28222111]
[1733666969833,0.1241653,100310.0,100300.0,0.28222111]
[1733666970011,0.0773653,100310.0,100300.0,0.37163684]
[1733666970211,0.0773653,100310.0,100300.0,0.37168303]
[1733666971886,0.0773653,100310.0,100300.0,0.50587591]
[1733666973077,0.0773653,100310.0,100300.0,0.90845455]
[1733666973443,0.0773653,100310.0,100300.0,1.01481018]
[1733666973768,0.0773653,100310.0,100300.0,1.23846498]
[1733666974421,0.0773653,100310.0,100300.0,1.01481018]
[1733666974864,0.0773653,100310.0,100300.0,1.01477879]
[1733666974993,0.0773653,100310.0,100300.0,0.88032437]
[1733666976094,0.0773653,100310.0,100300.0,0.77383196]
[1733666976318,0.0773653,100310.0,100300.0,0.90788787]
[1733666976558,0.0773653,100310.0,100300.0,0.68442839]
[1733666976807,0.0773653,100310.0,100300.0,0.90788787]
[1733666977639,0.0773653,100310.0,100300.0,1.2377831]
[1733666977921,0.0773653,100310.0,100300.0,1.01432362]
[1733666978148,0.0773653,100310.0,100300.0,1.23774413]
[1733666978525,0.0773653,100310.0,100300.0,1.01432362]
[1733666980077,0.0773653,100310.0,100300.0,0.83527555]
[1733666980667,0.0773653,100310.0,100300.0,1.01390457]
[1733666984778,0.0773653,100310.0,100300.0,1.19248784]
[1733666985730,0.0773653,100310.0,100300.0,1.28181117]
[1733666985821,0.08389142,100310.0,100300.0,1.28181117]
[1733666986030,0.0773653,100310.0,100300.0,1.4157792]
[1733666986244,0.00739142,100310.0,100300.0,1.4157792]
[1733666986448,0.0008653,100310.0,100300.0,1.4157792]
[1733666986794,0.00617567,100310.0,100300.0,1.28180438]
[1733666987031,0.078105,100320.0,100300.0,1.64071738]
[1733666987265,0.078105,100320.0,100310.0,0.32426167]
[1733666987498,0.078105,100320.0,100310.0,0.32326491]
[1733666987677,0.078105,100320.0,100310.0,0.50270791]
[1733666988063,0.083105,100320.0,100310.0,0.50270791]
[1733666988264,0.084105,100320.0,100310.0,0.50270791]
[1733666988465,0.079105,100320.0,100310.0,0.50270791]
[1733666988669,0.084105,100320.0,100310.0,0.50270791]
[1733666988894,0.083105,100320.0,100310.0,0.50270791]
[1733666989151,0.083105,100320.0,100310.0,0.36876667]
[1733666989283,0.084105,100320.0,100310.0,0.36876667]
[1733666994665,0.084105,100320.0,100310.0,0.36881228]
[1733666999134,0.084105,100320.0,100310.0,0.69863762]
[1733666999372,0.084105,100320.0,100310.0,0.36881228]
[1733666999704,0.084105,100320.0,100310.0,0.50286392]
[1733667000388,0.084105,100320.0,100310.0,0.36882907]
[1733667002402,0.007905,100320.0,100310.0,0.69179861]
[1733667002620,0.007905,100320.0,100310.0,1.02174662]
[1733667002827,0.007905,100320.0,100310.0,1.24521854]
[1733667003491,0.002905,100320.0,100310.0,1.24522694]
[1733667003648,0.001905,100320.0,100310.0,1.24522694]
[1733667004058,0.002905,100320.0,100310.0,1.24522694]
[1733667004498,0.001905,100320.0,100310.0,1.24516317]
[1733667004698,0.001905,100320.0,100310.0,1.15579821]
[1733667004969,0.001905,100320.0,100310.0,1.24915988]
[1733667005155,0.001905,100320.0,100310.0,1.25215988]
[1733667006393,0.001905,100320.0,100310.0,1.02868796]
[1733667006752,0.001905,100320.0,100310.0,1.03041856]
[1733667008416,0.0809,100330.0,100310.0,1.15437861]
[1733667008711,0.0809,100330.0,100320.0,0.80567747]
[1733667008921,0.0769326,100340.0,100330.0,0.179407]
[1733667009126,0.0017326,100340.0,100330.0,0.50275308]
[1733667009330,0.00825714,100340.0,100330.0,0.55275308]
[1733667009588,0.00825714,100340.0,100330.0,0.73775308]
[1733667009589,0.0017326,100340.0,100330.0,0.73775308]
[1733667009796,0.0017326,100340.0,100330.0,0.98405873]
[1733667010025,0.0017326,100340.0,100330.0,1.31362326]
[1733667010371,0.0017326,100340.0,100330.0,1.35837639]
[1733667010410,0.0017326,100340.0,100330.0,1.09030669]
[1733667010744,0.00828631,100340.0,100330.0,1.26870981]
[1733667010941,0.00613109,100340.0,100330.0,1.26870981]
[1733667011145,0.00713109,100340.0,100330.0,1.40252327]
[1733667011870,0.00713109,100340.0,100330.0,1.49172661]
[1733667012273,0.00713109,100340.0,100330.0,1.26942096]
[1733667013706,0.00713109,100340.0,100330.0,1.2689519]
[1733667014120,0.0027326,100340.0,100330.0,1.2689519]
[1733667014358,0.0027326,100340.0,100330.0,1.09059049]
[1733667014738,0.0027326,100340.0,100330.0,1.2689519]
[1733667015469,0.0027326,100340.0,100330.0,1.09059049]
[1733667016082,0.0027326,100340.0,100330.0,1.49189642]
[1733667016286,0.0027326,100340.0,100330.0,1.49089642]
[1733667016530,0.0017326,100340.0,100330.0,1.49089642]
[1733667016716,0.0017326,100340.0,100330.0,1.2739519]
[1733667017027,0.0017326,100340.0,100330.0,1.2709519]
[1733667017429,0.0027326,100340.0,100330.0,1.10059049]
[1733667018087,0.0027326,100340.0,100330.0,1.09759049]
[1733667018296,0.0027326,100340.0,100330.0,1.10159049]
[1733667020397,0.0027326,100340.0,100330.0,0.78222624]
[1733667020795,0.0027326,100340.0,100330.0,0.70922624]
[1733667021012,0.0790326,100340.0,100330.0,0.57545518]
[1733667021217,0.1285326,100340.0,100330.0,0.48627448]
[1733667022271,0.1285326,100340.0,100330.0,0.45127448]
[1733667022400,0.1285326,100340.0,100330.0,0.48627448]
[1733667022905,0.0790326,100340.0,100330.0,0.48627448]
[1733667027940,0.0027326,100340.0,100330.0,0.53627448]
[1733667028341,0.0027326,100340.0,100330.0,0.78207579]
[1733667028780,0.0027326,100340.0,100330.0,1.11101658]
[1733667028993,0.0781324,100350.0,100340.0,0.41439]
[1733667029199,0.0781324,100350.0,100340.0,0.60354003]
[1733667029826,0.0017324,100350.0,100340.0,0.60354003]
[1733667030028,0.00614676,100350.0,100340.0,0.60354003]
[1733667030342,0.00614676,100350.0,100340.0,1.06573948]
[1733667030459,0.00614676,100350.0,100340.0,1.06873948]
[1733667030859,0.0017324,100350.0,100340.0,1.09173948]
[1733667031535,0.0017324,100350.0,100340.0,1.26998053]
[1733667032165,0.0017324,100350.0,100340.0,1.27298053]
[1733667032923,0.0017324,100350.0,100340.0,1.09439007]
[1733667037828,0.0017324,100350.0,100340.0,1.13381285]
[1733667038494,0.0017324,100350.0,100340.0,1.15337513]
[1733667038694,0.0017324,100350.0,100340.0,0.82514572]
[1733667038902,0.0781324,100360.0,100350.0,0.229372]
[1733667039188,0.08296218,100360.0,100350.0,0.27940151]
[1733667040163,0.08313459,100360.0,100350.0,0.28040151]
[1733667040853,0.08413459,100360.0,100350.0,0.28040151]
[1733667043067,0.08413459,100360.0,100350.0,0.29052994]
[1733667047093,0.14030481,100360.0,100350.0,0.001]
[1733667047335,0.30949138,100360.0,100350.0,0.001]
[1733667048417,0.1268,100330.0,100320.0,0.0017304]
[1733667048631,0.1268,100330.0,100320.0,0.10175991]
[1733667048824,0.31095673,100330.0,100320.0,0.10175991]
[1733667049308,0.32595673,100330.0,100320.0,0.10175991]
[1733667049663,0.32595673,100330.0,100320.0,0.10575991]
[1733667050061,0.32595673,100330.0,100320.0,0.0057304]
[1733667051818,0.33070897,100330.0,100320.0,0.0057304]
[1733667052373,0.33070897,100330.0,100320.0,0.0077304]
[1733667053007,0.09030197,100330.0,100320.0,0.28718491]
[1733667053375,0.33070897,100330.0,100320.0,0.0077304]
[1733667063272,0.15130197,100330.0,100320.0,0.10775991]
[1733667063481,0.09030197,100330.0,100320.0,0.28718491]
[1733667063729,0.08940197,100330.0,100320.0,0.28718491]
[1733667063894,0.28380897,100330.0,100320.0,0.28718491]
[1733667064617,0.10440197,100330.0,100320.0,0.28718491]
[1733667071157,0.08940197,100330.0,100320.0,0.28718491]
[1733667072499,0.10440197,100330.0,100320.0,0.28718491]
[1733667073377,0.10440197,100330.0,100320.0,0.29461363]
[1733667075939,0.08940197,100330.0,100320.0,0.29461363]
[1733667076146,0.10440197,100330.0,100320.0,0.29461363]
[1733667082589,0.28380897,100330.0,100320.0,0.01515912]
[1733667083845,0.33330897,100330.0,100320.0,0.01515912]
[1733667086763,0.31830897,100330.0,100320.0,0.01515912]
[1733667086998,0.59133848,100330.0,100320.0,0.01515912]
[1733667087202,0.63670322,100330.0,100320.0,0.0077304]
[1733667087352,0.72596831,100330.0,100320.0,0.0077304]
[1733667087941,1.03891966,100330.0,100320.0,0.0077304]
[1733667088112,1.03891966,100330.0,100320.0,0.0037304]
[1733667088326,1.26737324,100330.0,100320.0,0.0037304]
[1733667088684,1.27732858,100330.0,100320.0,0.0017304]
[1733667088867,0.479225,100320.0,100310.0,0.0017306]